[Event "Early-Titled-Tuesday-Blitz-March-19-2024"]
[Site "Chess.com"]
[Date "2024.03.19"]
[Round "3"]
[White "Rurep26"]
[Black "Rogarcia1"]
[Result "1-0"]
[WhiteElo "2722"]
[BlackElo "2492"]
[TimeControl "180+1"]
[EndTime "8:27:32 PDT"]
[Termination "Rurep26 won by resignation"]

1. d4 {[%clk 0:03:00.9]} 1... d5 {[%clk 0:02:59.7]} 2. Bf4 {[%clk 0:03:00.2]}
2... c5 {[%clk 0:02:59.2]} 3. e3 {[%clk 0:03:00.1]} 3... cxd4 {[%clk 0:02:59.5]}
4. exd4 {[%clk 0:02:59.8]} 4... Nc6 {[%clk 0:02:59.8]} 5. c3 {[%clk 0:02:58.9]}
5... Bf5 {[%clk 0:02:59.7]} 6. Qb3 {[%clk 0:02:56.9]} 6... Qd7 {[%clk
0:02:59.2]} 7. Nd2 {[%clk 0:02:57]} 7... e6 {[%clk 0:02:57.9]} 8. Ngf3 {[%clk
0:02:57.1]} 8... f6 {[%clk 0:02:58.1]} 9. Be2 {[%clk 0:02:52.1]} 9... g5 {[%clk
0:02:58.2]} 10. Bg3 {[%clk 0:02:51.6]} 10... h5 {[%clk 0:02:58.6]} 11. h4 {[%clk
0:02:51.8]} 11... g4 {[%clk 0:02:55.8]} 12. Nh2 {[%clk 0:02:52.1]} 12... Bh6
{[%clk 0:02:51.7]} 13. Nhf1 {[%clk 0:02:52.4]} 13... Nge7 {[%clk 0:02:50.2]} 14.
Ne3 {[%clk 0:02:52.3]} 14... Bg6 {[%clk 0:02:45.9]} 15. Qa3 {[%clk 0:02:46.7]}
15... e5 {[%clk 0:02:16.9]} 16. Nb3 {[%clk 0:02:40.9]} 16... b6 {[%clk
0:01:54.3]} 17. dxe5 {[%clk 0:02:33.8]} 17... fxe5 {[%clk 0:01:52.9]} 18. Rd1
{[%clk 0:02:32.3]} 18... Qe6 {[%clk 0:01:43.7]} 19. O-O {[%clk 0:02:19.5]} 19...
Bxe3 {[%clk 0:01:33.9]} 20. fxe3 {[%clk 0:02:20.4]} 20... Nf5 {[%clk 0:01:34.2]}
21. Rxf5 {[%clk 0:02:11.1]} 21... Bxf5 {[%clk 0:01:31.8]} 22. Ba6 {[%clk
0:02:02.6]} 22... Rd8 {[%clk 0:01:01]} 23. Bb5 {[%clk 0:01:56.5]} 23... d4
{[%clk 0:00:19.4]} 24. exd4 {[%clk 0:01:41.9]} 24... e4 {[%clk 0:00:19.7]} 25.
d5 {[%clk 0:01:28.7]} 25... Rxd5 {[%clk 0:00:19.2]} 26. Nd4 {[%clk 0:01:29.1]}
26... Rxd4 {[%clk 0:00:11]} 27. Rxd4 {[%clk 0:01:30]} 27... e3 {[%clk
0:00:07.4]} 28. Rd6 {[%clk 0:01:29.4]} 28... Qe4 {[%clk 0:00:05.6]} 29. Bxc6+
{[%clk 0:01:29.4]} 29... Qxc6 {[%clk 0:00:05.9]} 30. Rxc6 {[%clk 0:01:30.3]}
30... e2 {[%clk 0:00:06]} 31. Rc7 {[%clk 0:01:28.7]} 1-0

[Event "Early-Titled-Tuesday-Blitz-March-19-2024"]
[Site "Chess.com"]
[Date "2024.03.19"]
[Round "3"]
[White "GMAneta"]
[Black "ajeale2"]
[Result "1-0"]
[WhiteElo "2667"]
[BlackElo "2458"]
[TimeControl "180+1"]
[EndTime "8:27:33 PDT"]
[Termination "GMAneta won on time"]

1. d4 {[%clk 0:03:00.8]} 1... d6 {[%clk 0:02:59]} 2. Nf3 {[%clk 0:03:00.4]} 2...
Nd7 {[%clk 0:02:56.9]} 3. e4 {[%clk 0:02:59.5]} 3... g6 {[%clk 0:02:55]} 4. Nc3
{[%clk 0:02:57.7]} 4... Bg7 {[%clk 0:02:53.9]} 5. Bc4 {[%clk 0:02:57.5]} 5... e6
{[%clk 0:02:38.4]} 6. O-O {[%clk 0:02:57.1]} 6... Ne7 {[%clk 0:02:36.9]} 7. Be3
{[%clk 0:02:56.3]} 7... O-O {[%clk 0:02:36.4]} 8. Qd2 {[%clk 0:02:56.4]} 8...
Re8 {[%clk 0:02:11.5]} 9. Bh6 {[%clk 0:02:55]} 9... Bh8 {[%clk 0:02:10.9]} 10.
Rfe1 {[%clk 0:02:54.5]} 10... c6 {[%clk 0:02:00.9]} 11. h3 {[%clk 0:02:53.2]}
11... b5 {[%clk 0:01:56.8]} 12. Bd3 {[%clk 0:02:48.5]} 12... a6 {[%clk 0:01:37]}
13. Qf4 {[%clk 0:02:45.3]} 13... e5 {[%clk 0:01:31.1]} 14. dxe5 {[%clk
0:02:36.5]} 14... dxe5 {[%clk 0:01:13]} 15. Qh4 {[%clk 0:02:35.6]} 15... Bf6
{[%clk 0:00:38.5]} 16. Ng5 {[%clk 0:02:25.7]} 16... Nf8 {[%clk 0:00:22.3]} 17.
a4 {[%clk 0:02:19.1]} 17... Rb8 {[%clk 0:00:14.1]} 18. axb5 {[%clk 0:02:17.9]}
18... axb5 {[%clk 0:00:15]} 19. Ra7 {[%clk 0:02:17.4]} 19... Rb7 {[%clk
0:00:13.7]} 20. Rea1 {[%clk 0:02:15.3]} 20... Ne6 {[%clk 0:00:04.5]} 21. Nxe6
{[%clk 0:02:11.9]} 21... Bxh4 {[%clk 0:00:02.9]} 22. Nxd8 {[%clk 0:02:11.6]}
22... Rxd8 {[%clk 0:00:03.4]} 23. Rxb7 {[%clk 0:02:08.7]} 23... Bxb7 {[%clk
0:00:03.5]} 24. Ra7 {[%clk 0:02:07.3]} 24... Rb8 {[%clk 0:00:03.4]} 25. f4
{[%clk 0:02:02.9]} 25... Nc8 {[%clk 0:00:03.2]} 26. Ra1 {[%clk 0:02:02.1]} 26...
Bf6 {[%clk 0:00:03.4]} 27. g4 {[%clk 0:01:59.1]} 27... b4 {[%clk 0:00:03.1]} 28.
Ne2 {[%clk 0:01:58]} 28... Nd6 {[%clk 0:00:03.2]} 29. g5 {[%clk 0:01:56.2]}
29... Bh8 {[%clk 0:00:01.9]} 30. f5 {[%clk 0:01:55]} 30... gxf5 {[%clk
0:00:01.5]} 31. exf5 {[%clk 0:01:55.3]} 31... e4 {[%clk 0:00:02.4]} 32. Ba6
{[%clk 0:01:53.4]} 32... Ra8 {[%clk 0:00:02.1]} 33. Rd1 {[%clk 0:01:51.3]} 33...
Rxa6 {[%clk 0:00:02.3]} 34. Rxd6 {[%clk 0:01:50.8]} 34... Ra8 {[%clk 0:00:02.7]}
35. f6 {[%clk 0:01:48.5]} 35... Re8 {[%clk 0:00:02.1]} 36. Kf2 {[%clk
0:01:47.2]} 36... c5 {[%clk 0:00:02.5]} 37. Ke3 {[%clk 0:01:46.1]} 37... c4
{[%clk 0:00:03.1]} 38. Nd4 {[%clk 0:01:45.4]} 38... Ba8 {[%clk 0:00:02]} 39. Nf5
{[%clk 0:01:45.3]} 39... c3 {[%clk 0:00:01.7]} 40. Rd8 {[%clk 0:01:43.1]} 1-0

[Event "Early-Titled-Tuesday-Blitz-March-19-2024"]
[Site "Chess.com"]
[Date "2024.03.19"]
[Round "3"]
[White "sergoy"]
[Black "Predator0608"]
[Result "1-0"]
[WhiteElo "2937"]
[BlackElo "2564"]
[TimeControl "180+1"]
[EndTime "8:27:35 PDT"]
[Termination "sergoy won by resignation"]

1. d4 {[%clk 0:02:58.6]} 1... Nf6 {[%clk 0:02:59.3]} 2. c4 {[%clk 0:02:56.3]}
2... e6 {[%clk 0:02:59.5]} 3. Nc3 {[%clk 0:02:56]} 3... Bb4 {[%clk 0:03:00]} 4.
a3 {[%clk 0:02:56.5]} 4... Bxc3+ {[%clk 0:02:58.9]} 5. bxc3 {[%clk 0:02:57.4]}
5... O-O {[%clk 0:02:54.2]} 6. e3 {[%clk 0:02:57.8]} 6... b6 {[%clk 0:02:54.4]}
7. Bd3 {[%clk 0:02:57.8]} 7... c5 {[%clk 0:02:54.1]} 8. e4 {[%clk 0:02:56.3]}
8... cxd4 {[%clk 0:02:34.2]} 9. cxd4 {[%clk 0:02:56.3]} 9... Nc6 {[%clk
0:02:35.1]} 10. Nf3 {[%clk 0:02:56.3]} 10... d5 {[%clk 0:02:32.6]} 11. cxd5
{[%clk 0:02:54]} 11... exd5 {[%clk 0:02:33.2]} 12. e5 {[%clk 0:02:54.5]} 12...
Ne4 {[%clk 0:02:33.8]} 13. Qc2 {[%clk 0:02:48.8]} 13... Bb7 {[%clk 0:02:22.5]}
14. O-O {[%clk 0:02:12.7]} 14... Rc8 {[%clk 0:02:06.6]} 15. Qe2 {[%clk
0:02:09.2]} 15... Na5 {[%clk 0:01:51.6]} 16. Bf4 {[%clk 0:02:03.6]} 16... Nb3
{[%clk 0:01:24.1]} 17. Rab1 {[%clk 0:02:01.5]} 17... Na5 {[%clk 0:01:09.4]} 18.
h4 {[%clk 0:01:56.5]} 18... h6 {[%clk 0:00:41.4]} 19. Rbc1 {[%clk 0:01:46]}
19... Qe7 {[%clk 0:00:41.1]} 20. h5 {[%clk 0:01:35.2]} 20... Qxa3 {[%clk
0:00:34.6]} 21. Nd2 {[%clk 0:01:31.2]} 21... Nxd2 {[%clk 0:00:31.4]} 22. Bxd2
{[%clk 0:01:29.4]} 22... Qe7 {[%clk 0:00:30.1]} 23. Qg4 {[%clk 0:01:27.6]} 23...
Rxc1 {[%clk 0:00:16.4]} 24. Rxc1 {[%clk 0:01:25.6]} 24... Qe6 {[%clk 0:00:09.4]}
25. Bf5 {[%clk 0:01:24]} 25... Qe7 {[%clk 0:00:09.9]} 26. Bxh6 {[%clk
0:01:23.9]} 26... f6 {[%clk 0:00:09.5]} 27. Qg6 {[%clk 0:01:21.3]} 27... fxe5
{[%clk 0:00:05.8]} 28. Qh7+ {[%clk 0:01:17.5]} 28... Kf7 {[%clk 0:00:05.9]} 29.
Qxg7+ {[%clk 0:01:17.7]} 29... Ke8 {[%clk 0:00:06.1]} 30. Bg6+ {[%clk
0:01:18.3]} 30... Kd8 {[%clk 0:00:05.9]} 31. Qxf8+ {[%clk 0:01:18.4]} 1-0

[Event "Early-Titled-Tuesday-Blitz-March-19-2024"]
[Site "Chess.com"]
[Date "2024.03.19"]
[Round "3"]
[White "Niilo1"]
[Black "Willhaven3"]
[Result "1-0"]
[WhiteElo "2309"]
[BlackElo "2529"]
[TimeControl "180+1"]
[EndTime "8:27:35 PDT"]
[Termination "Niilo1 won on time"]

1. e4 {[%clk 0:02:57.2]} 1... Nf6 {[%clk 0:03:00.3]} 2. e5 {[%clk 0:02:56.3]}
2... Nd5 {[%clk 0:03:00.7]} 3. d4 {[%clk 0:02:57.1]} 3... d6 {[%clk 0:03:00.6]}
4. Nf3 {[%clk 0:02:57.7]} 4... g6 {[%clk 0:03:00.5]} 5. Be2 {[%clk 0:02:53.2]}
5... Bg7 {[%clk 0:03:00.5]} 6. O-O {[%clk 0:02:53.2]} 6... O-O {[%clk
0:03:00.8]} 7. h3 {[%clk 0:02:52.3]} 7... Nc6 {[%clk 0:03:00.8]} 8. c4 {[%clk
0:02:46.5]} 8... Rb8 {[%clk 0:03:01.7]} 9. cxd5 {[%clk 0:02:46.1]} 9... Nb4
{[%clk 0:02:57.8]} 10. Nc3 {[%clk 0:02:45.8]} 10... Bf5 {[%clk 0:02:55.9]} 11.
a3 {[%clk 0:02:36.8]} 11... Na6 {[%clk 0:02:55.6]} 12. e6 {[%clk 0:02:26.2]}
12... c6 {[%clk 0:02:56.5]} 13. g4 {[%clk 0:02:24.8]} 13... fxe6 {[%clk
0:02:53.7]} 14. gxf5 {[%clk 0:02:24.6]} 14... exf5 {[%clk 0:02:54.6]} 15. dxc6
{[%clk 0:02:22.6]} 15... bxc6 {[%clk 0:02:53.6]} 16. Bxa6 {[%clk 0:02:22.2]}
16... e5 {[%clk 0:02:51.8]} 17. dxe5 {[%clk 0:02:15.4]} 17... Qb6 {[%clk
0:02:51.4]} 18. Bc4+ {[%clk 0:01:42.1]} 18... d5 {[%clk 0:02:50.5]} 19. Be2
{[%clk 0:01:38.6]} 19... Rbd8 {[%clk 0:02:45]} 20. b4 {[%clk 0:01:37.7]} 20...
d4 {[%clk 0:02:43.6]} 21. Na4 {[%clk 0:01:37.5]} 21... Qc7 {[%clk 0:02:42.7]}
22. Nc5 {[%clk 0:01:37.1]} 22... Qf7 {[%clk 0:02:41.8]} 23. Ng5 {[%clk
0:01:27.9]} 23... Qd5 {[%clk 0:02:39.9]} 24. Qc2 {[%clk 0:01:16.5]} 24... Bxe5
{[%clk 0:02:37.1]} 25. Bc4 {[%clk 0:01:15.2]} 25... Qxc4 {[%clk 0:02:20.1]} 26.
Qxc4+ {[%clk 0:01:15.1]} 26... Kg7 {[%clk 0:02:11.3]} 27. Nge6+ {[%clk
0:01:15.2]} 1-0

[Event "Early-Titled-Tuesday-Blitz-March-19-2024"]
[Site "Chess.com"]
[Date "2024.03.19"]
[Round "3"]
[White "zurzan"]
[Black "Dr_Pepper18"]
[Result "0-1"]
[WhiteElo "2039"]
[BlackElo "2361"]
[TimeControl "180+1"]
[EndTime "8:27:35 PDT"]
[Termination "Dr_Pepper18 won by checkmate"]

1. c4 {[%clk 0:03:00.9]} 1... Nf6 {[%clk 0:02:57.5]} 2. g3 {[%clk 0:03:01]} 2...
e6 {[%clk 0:02:56.6]} 3. Bg2 {[%clk 0:03:01.9]} 3... d5 {[%clk 0:02:57.3]} 4.
Nf3 {[%clk 0:02:57.2]} 4... dxc4 {[%clk 0:02:57.4]} 5. Qa4+ {[%clk 0:02:53.5]}
5... Nbd7 {[%clk 0:02:55]} 6. Qxc4 {[%clk 0:02:53]} 6... a6 {[%clk 0:02:55.7]}
7. Qc2 {[%clk 0:02:52.3]} 7... Rb8 {[%clk 0:02:55.3]} 8. d4 {[%clk 0:02:51]}
8... b5 {[%clk 0:02:55.2]} 9. O-O {[%clk 0:02:49.7]} 9... Bb7 {[%clk 0:02:55.6]}
10. Nbd2 {[%clk 0:02:37.3]} 10... c5 {[%clk 0:02:54.9]} 11. e4 {[%clk 0:02:35]}
11... Rc8 {[%clk 0:02:50.8]} 12. Qd3 {[%clk 0:02:16.1]} 12... cxd4 {[%clk
0:02:45.3]} 13. Nxd4 {[%clk 0:02:14.4]} 13... Ne5 {[%clk 0:02:39]} 14. Qe2
{[%clk 0:02:14.2]} 14... Qxd4 {[%clk 0:02:38.1]} 15. Nb3 {[%clk 0:02:10.7]}
15... Qd8 {[%clk 0:02:32.8]} 16. f4 {[%clk 0:02:06.7]} 16... Nc4 {[%clk
0:02:31.2]} 17. Kh1 {[%clk 0:01:54.7]} 17... Be7 {[%clk 0:02:31.1]} 18. g4
{[%clk 0:01:51.6]} 18... O-O {[%clk 0:02:30.8]} 19. g5 {[%clk 0:01:51.6]} 19...
Nd7 {[%clk 0:02:31.1]} 20. h4 {[%clk 0:01:51.5]} 20... Nc5 {[%clk 0:02:29.1]}
21. Rd1 {[%clk 0:01:47.4]} 21... Qc7 {[%clk 0:02:24.7]} 22. Nd4 {[%clk
0:01:46.3]} 22... Rfd8 {[%clk 0:02:24.7]} 23. b3 {[%clk 0:01:44.1]} 23... Nd6
{[%clk 0:02:25.1]} 24. e5 {[%clk 0:01:16.9]} 24... Bxg2+ {[%clk 0:02:26]} 25.
Kxg2 {[%clk 0:01:17.1]} 25... Nf5 {[%clk 0:02:26.6]} 26. Nxf5 {[%clk 0:01:14.6]}
26... exf5 {[%clk 0:02:27.5]} 27. Bb2 {[%clk 0:01:07]} 27... Ne4 {[%clk
0:02:26.6]} 28. Rac1 {[%clk 0:01:02.5]} 28... Qb7 {[%clk 0:02:26.8]} 29. Rxc8
{[%clk 0:00:58.4]} 29... Rxc8 {[%clk 0:02:27.7]} 30. Kh2 {[%clk 0:00:55.4]}
30... Qc6 {[%clk 0:02:25.2]} 31. Rc1 {[%clk 0:00:26.4]} 31... Qe8 {[%clk
0:02:15.4]} 32. Rxc8 {[%clk 0:00:27.3]} 32... Qxc8 {[%clk 0:02:16.3]} 33. a4
{[%clk 0:00:25.5]} 33... Qd7 {[%clk 0:02:16.1]} 34. axb5 {[%clk 0:00:25.2]}
34... axb5 {[%clk 0:02:17]} 35. h5 {[%clk 0:00:20.3]} 35... Qd2 {[%clk
0:02:16.1]} 36. Qxd2 {[%clk 0:00:19.9]} 36... Nxd2 {[%clk 0:02:17]} 37. g6
{[%clk 0:00:17.3]} 37... fxg6 {[%clk 0:02:17]} 38. hxg6 {[%clk 0:00:18.2]} 38...
hxg6 {[%clk 0:02:17.9]} 39. e6 {[%clk 0:00:18.1]} 39... Nxb3 {[%clk 0:02:17.6]}
40. Be5 {[%clk 0:00:18.9]} 40... Nc5 {[%clk 0:02:18]} 41. Bb2 {[%clk 0:00:16.5]}
41... Nxe6 {[%clk 0:02:18.4]} 42. Kg3 {[%clk 0:00:17.3]} 42... Bd6 {[%clk
0:02:18.9]} 43. Bc1 {[%clk 0:00:16.6]} 43... Nxf4 {[%clk 0:02:18.8]} 44. Kf3
{[%clk 0:00:17.4]} 44... Ne6 {[%clk 0:02:18.5]} 45. Bb2 {[%clk 0:00:16.5]} 45...
Kf7 {[%clk 0:02:18.9]} 46. Ke3 {[%clk 0:00:16.4]} 46... Be7 {[%clk 0:02:19.4]}
47. Kd3 {[%clk 0:00:16.3]} 47... Bf6 {[%clk 0:02:20.3]} 48. Ba3 {[%clk
0:00:15.7]} 48... g5 {[%clk 0:02:20.6]} 49. Bb4 {[%clk 0:00:14.9]} 49... g4
{[%clk 0:02:21.5]} 50. Ke3 {[%clk 0:00:15.1]} 50... Bg5+ {[%clk 0:02:21.4]} 51.
Kf2 {[%clk 0:00:15.4]} 51... f4 {[%clk 0:02:22]} 52. Kg2 {[%clk 0:00:15.7]}
52... Kg6 {[%clk 0:02:22.5]} 53. Bd6 {[%clk 0:00:15]} 53... Kf5 {[%clk
0:02:23.4]} 54. Bc7 {[%clk 0:00:14.3]} 54... f3+ {[%clk 0:02:24.3]} 55. Kf2
{[%clk 0:00:13.6]} 55... Bh4+ {[%clk 0:02:24.7]} 56. Kf1 {[%clk 0:00:13.7]}
56... Nf4 {[%clk 0:02:25.2]} 57. Bb6 {[%clk 0:00:09.4]} 57... g3 {[%clk
0:02:25.6]} 58. Bc5 {[%clk 0:00:09.1]} 58... Nh3 {[%clk 0:02:23.5]} 59. Bd4
{[%clk 0:00:05.7]} 59... g2# {[%clk 0:02:23.8]} 0-1

[Event "Early-Titled-Tuesday-Blitz-March-19-2024"]
[Site "Chess.com"]
[Date "2024.03.19"]
[Round "3"]
[White "Ticoluis"]
[Black "Felix-Rose"]
[Result "1-0"]
[WhiteElo "2462"]
[BlackElo "2258"]
[TimeControl "180+1"]
[EndTime "8:27:37 PDT"]
[Termination "Ticoluis won by resignation"]

1. e4 {[%clk 0:02:56.2]} 1... e5 {[%clk 0:02:59.4]} 2. Nf3 {[%clk 0:02:55.4]}
2... Nc6 {[%clk 0:02:59.8]} 3. Bb5 {[%clk 0:02:54.5]} 3... a6 {[%clk 0:02:59.9]}
4. Ba4 {[%clk 0:02:50.9]} 4... Nf6 {[%clk 0:03:00.2]} 5. d3 {[%clk 0:02:50]}
5... b5 {[%clk 0:03:00.1]} 6. Bb3 {[%clk 0:02:50.1]} 6... Bc5 {[%clk 0:03:00.9]}
7. O-O {[%clk 0:02:49.9]} 7... d6 {[%clk 0:03:01.4]} 8. Be3 {[%clk 0:02:49.6]}
8... Bxe3 {[%clk 0:02:55.8]} 9. fxe3 {[%clk 0:02:48.9]} 9... Ne7 {[%clk
0:02:55.2]} 10. Qe1 {[%clk 0:02:48.2]} 10... Ng6 {[%clk 0:02:54.3]} 11. Nc3
{[%clk 0:02:47.8]} 11... O-O {[%clk 0:02:51.7]} 12. Nh4 {[%clk 0:02:46.2]} 12...
Nxh4 {[%clk 0:02:15.1]} 13. Qxh4 {[%clk 0:02:44.7]} 13... c6 {[%clk 0:02:14.1]}
14. Rf3 {[%clk 0:02:40.7]} 14... Be6 {[%clk 0:02:13.5]} 15. Raf1 {[%clk
0:02:39.3]} 15... Nd7 {[%clk 0:02:06.2]} 16. Qh5 {[%clk 0:02:35.4]} 16... Nc5
{[%clk 0:01:52.4]} 17. Rg3 {[%clk 0:02:22.3]} 17... Nxb3 {[%clk 0:01:44]} 18.
Qh6 {[%clk 0:02:15.9]} 18... g6 {[%clk 0:01:37.3]} 19. axb3 {[%clk 0:02:15.3]}
19... b4 {[%clk 0:01:25.8]} 20. Na4 {[%clk 0:02:02.7]} 20... Qe7 {[%clk
0:01:24.2]} 21. d4 {[%clk 0:02:00.4]} 21... f5 {[%clk 0:01:17.6]} 22. d5 {[%clk
0:01:38.7]} 22... cxd5 {[%clk 0:01:15.7]} 23. exd5 {[%clk 0:01:38.9]} 23... f4
{[%clk 0:00:37.7]} 24. exf4 {[%clk 0:01:34.4]} 24... Bxd5 {[%clk 0:00:37.2]} 25.
f5 {[%clk 0:01:28.7]} 25... Rf6 {[%clk 0:00:13.6]} 26. Nb6 {[%clk 0:01:26.1]}
26... Qa7 {[%clk 0:00:13.1]} 27. Qe3 {[%clk 0:01:25.9]} 27... Rb8 {[%clk
0:00:01.2]} 28. Nxd5 {[%clk 0:01:24.5]} 1-0

[Event "Early-Titled-Tuesday-Blitz-March-19-2024"]
[Site "Chess.com"]
[Date "2024.03.19"]
[Round "3"]
[White "CatLoverPL"]
[Black "Andrei_Skvortsov"]
[Result "0-1"]
[WhiteElo "2510"]
[BlackElo "2739"]
[TimeControl "180+1"]
[EndTime "8:27:40 PDT"]
[Termination "Andrei_Skvortsov won by resignation"]

1. g3 {[%clk 0:03:00.9]} 1... h5 {[%clk 0:02:55.8]} 2. h4 {[%clk 0:02:59.9]}
2... Nf6 {[%clk 0:02:48.2]} 3. Bg2 {[%clk 0:03:00]} 3... d5 {[%clk 0:02:48]} 4.
c4 {[%clk 0:03:00.5]} 4... c6 {[%clk 0:02:45.9]} 5. cxd5 {[%clk 0:02:59.8]} 5...
cxd5 {[%clk 0:02:46.4]} 6. Nf3 {[%clk 0:03:00.7]} 6... Nc6 {[%clk 0:02:46.7]} 7.
O-O {[%clk 0:03:01.6]} 7... e5 {[%clk 0:02:47.1]} 8. d3 {[%clk 0:03:02.1]} 8...
Be7 {[%clk 0:02:47.2]} 9. Nc3 {[%clk 0:03:02.3]} 9... Bg4 {[%clk 0:02:47.3]} 10.
Bg5 {[%clk 0:03:02.1]} 10... O-O {[%clk 0:02:45.8]} 11. Bxf6 {[%clk 0:03:02]}
11... Bxf6 {[%clk 0:02:46.7]} 12. e4 {[%clk 0:03:02.3]} 12... dxe4 {[%clk
0:02:45.9]} 13. dxe4 {[%clk 0:03:01.9]} 13... Qxd1 {[%clk 0:02:45.9]} 14. Rfxd1
{[%clk 0:03:01.3]} 14... g6 {[%clk 0:02:31.5]} 15. Nd5 {[%clk 0:03:01]} 15...
Bd8 {[%clk 0:02:32.1]} 16. Rd3 {[%clk 0:03:00.4]} 16... Kg7 {[%clk 0:02:29]} 17.
Kh2 {[%clk 0:02:54.4]} 17... f6 {[%clk 0:02:12.3]} 18. Bh3 {[%clk 0:02:53.9]}
18... Rh8 {[%clk 0:02:10.7]} 19. Kg2 {[%clk 0:02:47.3]} 19... Bxf3+ {[%clk
0:02:09.6]} 20. Kxf3 {[%clk 0:02:47]} 20... g5 {[%clk 0:02:09.7]} 21. hxg5
{[%clk 0:02:40.5]} 21... fxg5 {[%clk 0:02:10.6]} 22. Bf5 {[%clk 0:02:35.9]}
22... Nd4+ {[%clk 0:02:04.2]} 23. Kg2 {[%clk 0:02:36]} 23... Nxf5 {[%clk
0:02:02.4]} 24. exf5 {[%clk 0:02:35.8]} 24... Rf8 {[%clk 0:02:02.9]} 25. Ne3
{[%clk 0:02:26.5]} 25... Bb6 {[%clk 0:02:01.2]} 26. Nc4 {[%clk 0:02:26.1]} 26...
Bd4 {[%clk 0:02:00.8]} 27. Ne3 {[%clk 0:02:02]} 27... Rac8 {[%clk 0:01:49.5]}
28. Rad1 {[%clk 0:01:56.8]} 28... Rf7 {[%clk 0:01:44.9]} 29. R1d2 {[%clk
0:01:52]} 29... Rc5 {[%clk 0:01:30.2]} 30. b4 {[%clk 0:01:32.8]} 30... Rcc7
{[%clk 0:01:22.6]} 31. f3 {[%clk 0:01:21.6]} 31... Bxe3 {[%clk 0:01:22.3]} 32.
Rxe3 {[%clk 0:01:22]} 32... Rxf5 {[%clk 0:01:22.7]} 33. g4 {[%clk 0:01:16.8]}
33... hxg4 {[%clk 0:01:22.6]} 34. fxg4 {[%clk 0:01:16.7]} 34... Rf4 {[%clk
0:01:23.1]} 35. Kg3 {[%clk 0:01:16.8]} 35... Rxb4 {[%clk 0:01:13.9]} 36. Rxe5
{[%clk 0:01:16.5]} 36... Rc3+ {[%clk 0:01:14.2]} 37. Kg2 {[%clk 0:01:13]} 37...
Rxg4+ {[%clk 0:01:13.4]} 38. Kf2 {[%clk 0:01:13.1]} 38... Kf6 {[%clk 0:01:09.3]}
39. Ra5 {[%clk 0:01:09.7]} 39... Rf4+ {[%clk 0:01:00.9]} 40. Kg2 {[%clk
0:01:09.1]} 40... a6 {[%clk 0:00:57]} 41. Rd7 {[%clk 0:01:02.3]} 41... Rb4
{[%clk 0:00:51]} 42. Rdd5 {[%clk 0:01:01.1]} 42... Rb2+ {[%clk 0:00:50.1]} 0-1

[Event "Early-Titled-Tuesday-Blitz-March-19-2024"]
[Site "Chess.com"]
[Date "2024.03.19"]
[Round "3"]
[White "KetiTsatsalashvili"]
[Black "lluiss"]
[Result "1-0"]
[WhiteElo "2493"]
[BlackElo "2261"]
[TimeControl "180+1"]
[EndTime "8:27:41 PDT"]
[Termination "KetiTsatsalashvili won on time"]

1. d4 {[%clk 0:03:00.9]} 1... Nf6 {[%clk 0:02:58.8]} 2. c4 {[%clk 0:02:56.5]}
2... g6 {[%clk 0:02:58.4]} 3. Nc3 {[%clk 0:02:50.3]} 3... d5 {[%clk 0:02:58.9]}
4. cxd5 {[%clk 0:02:50.1]} 4... Nxd5 {[%clk 0:02:59.4]} 5. e4 {[%clk 0:02:50.5]}
5... Nxc3 {[%clk 0:02:59.7]} 6. bxc3 {[%clk 0:02:51.4]} 6... Bg7 {[%clk
0:02:59.6]} 7. Nf3 {[%clk 0:02:51.9]} 7... c5 {[%clk 0:02:56.5]} 8. Be2 {[%clk
0:02:51.6]} 8... O-O {[%clk 0:02:44.9]} 9. O-O {[%clk 0:02:45.2]} 9... Nc6
{[%clk 0:02:43.2]} 10. Be3 {[%clk 0:02:42]} 10... Bg4 {[%clk 0:02:31.4]} 11. d5
{[%clk 0:02:23.5]} 11... Ne5 {[%clk 0:02:21.9]} 12. Nxe5 {[%clk 0:02:21.4]}
12... Bxe2 {[%clk 0:02:21.5]} 13. Qxe2 {[%clk 0:02:22.3]} 13... Bxe5 {[%clk
0:02:21.3]} 14. Bxc5 {[%clk 0:02:11.9]} 14... Bxc3 {[%clk 0:02:20.6]} 15. Rac1
{[%clk 0:02:11.3]} 15... Bg7 {[%clk 0:02:04.4]} 16. h4 {[%clk 0:02:08.6]} 16...
Qd7 {[%clk 0:01:30]} 17. h5 {[%clk 0:02:03.8]} 17... f5 {[%clk 0:01:21.2]} 18.
Rfd1 {[%clk 0:01:33.3]} 18... fxe4 {[%clk 0:01:06.4]} 19. hxg6 {[%clk
0:01:32.8]} 19... hxg6 {[%clk 0:01:04.5]} 20. Qxe4 {[%clk 0:01:33.3]} 20... Rae8
{[%clk 0:00:24.9]} 21. Qxg6 {[%clk 0:01:29]} 21... Qf5 {[%clk 0:00:21]} 22. Qe6+
{[%clk 0:01:23.4]} 22... Kh7 {[%clk 0:00:11.4]} 23. Qxf5+ {[%clk 0:01:18.2]}
23... Rxf5 {[%clk 0:00:12.3]} 24. Bxa7 {[%clk 0:01:09.7]} 24... Ra8 {[%clk
0:00:11.9]} 25. Be3 {[%clk 0:01:09.8]} 25... Rxa2 {[%clk 0:00:11]} 26. Rc7
{[%clk 0:01:09.9]} 26... Bf6 {[%clk 0:00:04.3]} 27. Rxb7 {[%clk 0:01:05.5]}
27... Ra5 {[%clk 0:00:03.7]} 28. d6 {[%clk 0:01:04.6]} 1-0

[Event "Early-Titled-Tuesday-Blitz-March-19-2024"]
[Site "Chess.com"]
[Date "2024.03.19"]
[Round "3"]
[White "Witik"]
[Black "vugarrasulov"]
[Result "0-1"]
[WhiteElo "2763"]
[BlackElo "2985"]
[TimeControl "180+1"]
[EndTime "8:27:43 PDT"]
[Termination "vugarrasulov won on time"]

1. d4 {[%clk 0:02:59.5]} 1... Nf6 {[%clk 0:02:59.9]} 2. c4 {[%clk 0:02:57.5]}
2... e6 {[%clk 0:03:00.1]} 3. Nf3 {[%clk 0:02:56.3]} 3... d5 {[%clk 0:02:59.6]}
4. g3 {[%clk 0:02:55.8]} 4... dxc4 {[%clk 0:02:58.6]} 5. Bg2 {[%clk 0:02:55.3]}
5... Bb4+ {[%clk 0:02:59.2]} 6. Bd2 {[%clk 0:02:54.8]} 6... a5 {[%clk
0:02:59.8]} 7. O-O {[%clk 0:02:54.7]} 7... O-O {[%clk 0:03:00.1]} 8. Qc2 {[%clk
0:02:51.4]} 8... b5 {[%clk 0:02:59.9]} 9. a4 {[%clk 0:02:41.8]} 9... c6 {[%clk
0:03:00]} 10. Bg5 {[%clk 0:02:11.9]} 10... Bb7 {[%clk 0:02:56]} 11. Nc3 {[%clk
0:01:51.8]} 11... h6 {[%clk 0:02:44.9]} 12. Bxf6 {[%clk 0:01:49.1]} 12... Qxf6
{[%clk 0:02:45.8]} 13. Ne5 {[%clk 0:01:49.4]} 13... Qe7 {[%clk 0:02:31]} 14. e3
{[%clk 0:01:18.6]} 14... Rc8 {[%clk 0:02:27.3]} 15. f4 {[%clk 0:01:13.8]} 15...
Nd7 {[%clk 0:02:18]} 16. axb5 {[%clk 0:00:43.6]} 16... Nxe5 {[%clk 0:02:16.2]}
17. fxe5 {[%clk 0:00:43.8]} 17... cxb5 {[%clk 0:01:48.5]} 18. Ne4 {[%clk
0:00:17.4]} 18... Bxe4 {[%clk 0:01:40.3]} 19. Qxe4 {[%clk 0:00:16.9]} 19... c3
{[%clk 0:01:34.3]} 20. bxc3 {[%clk 0:00:17.1]} 20... Bxc3 {[%clk 0:01:35.2]} 21.
Ra2 {[%clk 0:00:17.7]} 21... Ra7 {[%clk 0:01:31.5]} 22. Qg4 {[%clk 0:00:17.7]}
22... Qg5 {[%clk 0:01:17.4]} 23. Qf3 {[%clk 0:00:09.4]} 23... b4 {[%clk
0:01:17.4]} 24. h4 {[%clk 0:00:09.4]} 24... Qg6 {[%clk 0:01:17.1]} 25. Raf2
{[%clk 0:00:09.7]} 25... b3 {[%clk 0:01:14.2]} 26. d5 {[%clk 0:00:05.5]} 26...
b2 {[%clk 0:01:10.9]} 27. dxe6 {[%clk 0:00:02.2]} 27... b1=Q {[%clk 0:01:05.1]}
28. exf7+ {[%clk 0:00:02.1]} 28... Rxf7 {[%clk 0:01:05.7]} 0-1